fUST/lending_fUST_20250115
["ID","MTS","AMOUNT","RATE_DAILY","PERIOD"]
[349029619,1736944246275,-500.0,0.00020542,3]
[349029620,1736944246284,-628.82,0.00020542,3]
[349029621,1736944246294,-500.0,0.00020542,3]
[349029622,1736944246303,-500.0,0.00020542,3]
[349029624,1736944246312,-500.0,0.00020542,3]
[349029626,1736944246321,-4188.84,0.00020542,3]
[349029628,1736944246331,-3855.6,0.00020543,3]
[349029629,1736944246340,-884.67,0.00020675,3]
[349029631,1736944246349,-500.0,0.00020675,3]
[349029633,1736944246359,-500.0,0.00020675,3]
[349029635,1736944246368,-922.1,0.00020676,3]
[349029636,1736944246377,-588.73,0.00020676,3]
[349029638,1736944246387,-500.0,0.00020676,3]
[349029641,1736944246397,-500.0,0.00020676,3]
[349029642,1736944246406,-722.24,0.00020676,3]
[349029644,1736944246416,-500.0,0.00020676,3]
[349029646,1736944246425,-500.0,0.00020676,3]
[349029648,1736944246436,-644.29,0.00020676,3]
[349029650,1736944246445,-581.19,0.00020676,3]
[349029652,1736944246455,-870.67,0.00020676,3]
[349029655,1736944246471,-594.37,0.00020676,3]
[349029657,1736944246480,-17754.08,0.00020676,3]
[349029659,1736944246490,-550.36,0.00020677,3]
[349029661,1736944246499,-500.0,0.00020677,3]
[349029663,1736944246508,-500.0,0.00020677,3]
[349029665,1736944246517,-629.70159054,0.00020677,3]
[349029667,1736944246527,-500.0,0.00020677,3]
[349029669,1736944246536,-500.0,0.00020677,3]
[349029671,1736944246545,-12842.54,0.00020677,3]
[349029673,1736944246554,-502.04,0.00020677,3]
[349029675,1736944246563,-500.0,0.00020677,3]
[349029677,1736944246573,-500.0,0.00020678,3]
[349029679,1736944246582,-500.0,0.00020678,3]
[349029681,1736944246591,-500.0,0.00020678,3]
[349029683,1736944246601,-500.0,0.00020678,3]
[349029685,1736944246610,-500.0,0.00020678,3]
[349029687,1736944246619,-500.0,0.00020678,2]
[349029689,1736944246628,-500.0,0.00020678,3]
[349029691,1736944246639,-500.0,0.00020678,3]
[349029693,1736944246648,-500.0,0.00020678,3]
[349029695,1736944246658,-427.15,0.00020678,3]
[349029697,1736944246667,-500.0,0.00020678,3]
[349029699,1736944246676,-500.0,0.00020678,3]
[349029701,1736944246685,-500.0,0.00020678,3]
[349029703,1736944246695,-500.0,0.00020679,3]
[349029705,1736944246705,-500.0,0.00020679,3]
[349029707,1736944246714,-2046.57,0.00020679,3]
[349029709,1736944246724,-1536.16,0.00020679,3]
[349029711,1736944246734,-500.0,0.00020679,3]
[349029713,1736944246743,-500.0,0.00020679,3]
[349029715,1736944246752,-604.24,0.00020679,3]
[349029717,1736944246763,-500.0,0.00020679,3]
[349029719,1736944246772,-500.0,0.00020679,3]
[349029721,1736944246782,-500.0,0.00020679,3]
[349029723,1736944246792,-500.0,0.00020679,3]
[349029725,1736944246802,-4188.84,0.00020679,3]
[349029727,1736944246811,-3855.6,0.0002068,3]
[349029729,1736944246820,-884.67,0.00020812,3]
[349029731,1736944246829,-500.0,0.00020812,3]
[349029733,1736944246839,-500.0,0.00020812,3]
[349029735,1736944246848,-922.1,0.00020813,3]
[349029737,1736944246857,-588.73,0.00020813,3]
[349029739,1736944246867,-500.0,0.00020813,3]
[349029741,1736944246877,-500.0,0.00020813,3]
[349029743,1736944246887,-722.24,0.00020813,3]
[349029745,1736944246897,-500.0,0.00020813,3]
[349029747,1736944246907,-500.0,0.00020813,3]
[349029749,1736944246917,-644.29,0.00020813,3]
[349029751,1736944246929,-581.19,0.00020813,3]
[349029753,1736944246939,-870.67,0.00020813,3]
[349029755,1736944246948,-594.37,0.00020813,3]
[349029757,1736944246958,-17754.08,0.00020813,3]
[349029759,1736944246968,-550.36,0.00020814,3]
[349029761,1736944246978,-500.0,0.00020814,3]
[349029762,1736944246987,-500.0,0.00020814,3]
[349029764,1736944246998,-500.0,0.00020814,3]
[349029767,1736944247008,-500.0,0.00020814,3]
[349029769,1736944247019,-12842.54,0.00020814,3]
[349029771,1736944247029,-502.04,0.00020814,3]
[349029773,1736944247038,-500.0,0.00020814,3]
[349029775,1736944247048,-151.0,0.00020814,2]
[349029777,1736944247057,-500.0,0.00020815,3]
[349029779,1736944247067,-500.0,0.00020815,3]
[349029781,1736944247076,-500.0,0.00020815,3]
[349029782,1736944247085,-500.0,0.00020815,3]
[349029783,1736944247094,-500.0,0.00020815,3]
[349029785,1736944247103,-500.0,0.00020815,2]
[349029787,1736944247113,-632.84,0.00020815,3]
[349029789,1736944247122,-500.0,0.00020815,3]
[349029791,1736944247131,-500.0,0.00020815,3]
[349029793,1736944247142,-500.0,0.00020815,3]
[349029795,1736944247151,-500.0,0.00020815,3]
[349029797,1736944247161,-500.0,0.00020816,3]
[349029799,1736944247170,-500.0,0.00020816,3]
[349029801,1736944247180,-2046.57,0.00020816,3]
[349029803,1736944247190,-1536.16,0.00020816,3]
[349029805,1736944247199,-626.9,0.00020816,3]
[349029807,1736944247208,-500.0,0.00020816,3]
[349029809,1736944247218,-604.24,0.00020816,3]
[349029811,1736944247227,-500.0,0.00020816,3]
[349029813,1736944247237,-500.0,0.00020816,3]
[349029815,1736944247247,-500.0,0.00020816,3]
[349029817,1736944247256,-500.0,0.00020816,3]
[349029819,1736944247265,-4188.84,0.00020816,3]
[349029821,1736944247275,-3855.6,0.00020817,3]
[349029823,1736944247284,-405.1001735,0.000209,2]
[349029825,1736944247294,-884.67,0.00020949,3]
[349029827,1736944247303,-500.0,0.00020949,3]
[349029829,1736944247313,-500.0,0.00020949,3]
[349029831,1736944247323,-922.1,0.0002095,3]
[349029833,1736944247333,-588.73,0.0002095,3]
[349029835,1736944247342,-500.0,0.0002095,3]
[349029837,1736944247352,-500.0,0.0002095,3]
[349029839,1736944247361,-722.24,0.0002095,3]
[349029841,1736944247371,-500.0,0.0002095,3]
[349029843,1736944247380,-500.0,0.0002095,3]
[349029845,1736944247390,-644.29,0.0002095,3]
[349029847,1736944247400,-581.19,0.0002095,3]
[349029849,1736944247410,-870.67,0.0002095,3]
[349029851,1736944247419,-594.37,0.0002095,3]
[349029853,1736944247429,-17754.08,0.0002095,3]
[349029855,1736944247439,-5560.95441277,0.00020951,5]
[349029857,1736944247449,-4548.119639,0.00020951,5]
[349029859,1736944247459,-550.36,0.00020951,3]
[349029861,1736944247468,-500.0,0.00020951,3]
[349029863,1736944247478,-500.0,0.00020951,3]
[349029865,1736944247487,-500.0,0.00020951,3]
[349029867,1736944247497,-500.0,0.00020951,3]
[349029869,1736944247507,-12842.54,0.00020951,3]
[349029870,1736944247517,-502.04,0.00020951,3]
[349029871,1736944247527,-500.0,0.00020951,3]
[349029872,1736944247537,-500.0,0.00020952,3]
[349029873,1736944247547,-500.0,0.00020952,3]
[349029874,1736944247556,-500.0,0.00020952,3]
[349029875,1736944247566,-500.0,0.00020952,3]
[349029876,1736944247576,-318.5020282,0.00020952,3]
[349029877,1736944247585,-500.0,0.00020952,2]
[349029878,1736944247595,-585.5,0.00020952,3]
[349029879,1736944247604,-500.0,0.00020952,3]
[349029880,1736944247615,-500.0,0.00020952,3]
[349029881,1736944247625,-500.0,0.00020952,3]
[349029882,1736944247635,-500.0,0.00020953,3]
[349029883,1736944247644,-500.0,0.00020953,3]
[349029884,1736944247654,-2046.57,0.00020953,3]
[349029886,1736944247664,-1536.16,0.00020953,3]
[349029887,1736944247678,-500.0,0.00020953,3]
[349029889,1736944247688,-604.24,0.00020953,3]
[349029892,1736944247698,-500.0,0.00020953,3]
[349029894,1736944247709,-500.0,0.00020953,3]
[349029896,1736944247719,-240.24,0.00020953,3]
[349029898,1736944247730,-500.0,0.00020953,3]
[349029900,1736944247740,-4188.84,0.00020953,3]
[349029901,1736944247751,-286.267143,0.00020954,2]
[349029902,1736944247761,-286.267143,0.00020954,2]
[349029903,1736944247772,-151.0,0.00020954,2]
[349029904,1736944247782,-3855.6,0.00020954,3]
[349029905,1736944247791,-558.83719679,0.00020966,2]
[349029906,1736944247801,-1100.0,0.00020998,2]
[349029907,1736944247812,-3142.35796484,0.00021,2]
[349029908,1736944247822,-3000.0,0.00021,2]
[349029909,1736944247831,-3080.7390592,0.00021,2]
[349029910,1736944247841,-17122.59539143,0.00021,5]
[349029911,1736944247851,-3156.39339748,0.00021,2]
[349029912,1736944247860,-405.10017332,0.00021003,2]
[349029913,1736944247870,-3000.0,0.0002101,2]
[349029914,1736944247880,-633.5846824,0.00021018,2]
[349029916,1736944247890,-3932.603225,0.0002102,2]
[349029918,1736944247899,-500.0,0.00021021,2]
[349029919,1736944247909,-500.0,0.00021053,2]
[349029920,1736944247921,-884.67,0.00021086,3]
[349029921,1736944247932,-500.0,0.00021086,3]
[349029922,1736944247942,-500.0,0.00021086,3]
[349029923,1736944248023,-922.1,0.00021087,3]
[349029924,1736944248033,-588.73,0.00021087,3]
[349029925,1736944248042,-500.0,0.00021087,3]
[349029926,1736944248052,-500.0,0.00021087,3]
[349029927,1736944248062,-722.24,0.00021087,3]
[349029928,1736944248073,-500.0,0.00021087,3]
[349029929,1736944248083,-500.0,0.00021087,3]
[349029930,1736944248093,-644.29,0.00021087,3]
[349029931,1736944248104,-581.19,0.00021087,3]
[349029932,1736944248114,-870.67,0.00021087,3]
[349029933,1736944248124,-594.37,0.00021087,3]
[349029934,1736944248135,-17754.08,0.00021087,3]
[349029935,1736944248144,-550.36,0.00021088,3]
[349029936,1736944248155,-500.0,0.00021088,3]
[349029937,1736944248164,-500.0,0.00021088,3]
[349029938,1736944248174,-500.0,0.00021088,3]
[349029939,1736944248184,-500.0,0.00021088,3]
[349029940,1736944248194,-12842.54,0.00021088,3]
[349029941,1736944248203,-502.04,0.00021088,3]
[349029942,1736944248213,-500.0,0.00021088,3]
[349029943,1736944248223,-500.0,0.00021089,3]
[349029944,1736944248233,-500.0,0.00021089,3]
[349029945,1736944248242,-594.52714145,0.00021089,3]
[349029946,1736944248252,-500.0,0.00021089,3]
[349029947,1736944248263,-500.0,0.00021089,2]
[349029948,1736944248272,-500.0,0.00021089,3]
[349029949,1736944248282,-500.0,0.00021089,3]
[349029950,1736944248291,-500.0,0.00021089,3]
[349029951,1736944248301,-500.0,0.0002109,3]
[349029952,1736944248311,-500.0,0.0002109,3]
[349029953,1736944248322,-2046.57,0.0002109,3]
[349029954,1736944248331,-1536.16,0.0002109,3]
[349029955,1736944248341,-500.0,0.0002109,3]
[349029956,1736944248350,-604.24,0.0002109,3]
[349029957,1736944248360,-500.0,0.0002109,3]
[349029958,1736944248370,-500.0,0.0002109,3]
[349029959,1736944248380,-500.0,0.0002109,3]
[349029960,1736944248392,-4188.84,0.0002109,3]
[349029961,1736944248402,-3855.6,0.00021091,3]
[349029962,1736944248411,-405.10017332,0.00021107,2]
[349029963,1736944248421,-1000.0,0.0002118,2]
[349029964,1736944248430,-151.0,0.00021191,2]
[349029965,1736944248440,-1269.227258,0.000212,2]
[349029966,1736944248450,-405.10017332,0.0002121,2]
[349029967,1736944248461,-884.67,0.00021223,3]
[349029968,1736944248471,-500.0,0.00021223,3]
[349029969,1736944248481,-500.0,0.00021223,3]
[349029970,1736944248491,-922.1,0.00021224,3]
[349029971,1736944248500,-588.73,0.00021224,3]
[349029972,1736944248510,-500.0,0.00021224,3]
[349029973,1736944248526,-500.0,0.00021224,3]
[349029974,1736944248536,-722.24,0.00021224,3]
[349029975,1736944248547,-194.77,0.00021224,3]
[349029976,1736944248556,-500.0,0.00021224,3]
[349029977,1736944248567,-644.29,0.00021224,3]
[349029978,1736944248576,-581.19,0.00021224,3]
[349029979,1736944248586,-870.67,0.00021224,3]
[349029980,1736944248596,-594.37,0.00021224,3]
[349029981,1736944248606,-17754.08,0.00021224,3]
[349029982,1736944248616,-550.36,0.00021225,3]
[349029983,1736944248625,-500.0,0.00021225,3]
[349029984,1736944248636,-500.0,0.00021225,3]
[349029985,1736944248646,-500.0,0.00021225,3]
[349029986,1736944248656,-500.0,0.00021225,3]
[349029987,1736944248666,-12842.54,0.00021225,3]
[349029988,1736944248676,-502.04,0.00021225,3]
[349029989,1736944248686,-500.0,0.00021225,3]
[349029990,1736944248696,-500.0,0.00021226,3]
[349029991,1736944248706,-500.0,0.00021226,3]
[349029992,1736944248715,-500.0,0.00021226,3]
[349029993,1736944248725,-500.0,0.00021226,2]
[349029994,1736944248735,-246.01062452,0.00021226,3]
[349029995,1736944248746,-500.0,0.00021226,3]
[349029996,1736944248756,-500.0,0.00021226,3]
[349029997,1736944248766,-500.0,0.00021227,3]
[349029998,1736944248776,-500.0,0.00021227,3]
[349029999,1736944248786,-2046.57,0.00021227,3]
[349030000,1736944248796,-1536.16,0.00021227,3]
[349030001,1736944248807,-500.0,0.00021227,3]
[349030002,1736944248816,-604.24,0.00021227,3]
[349030003,1736944248826,-500.0,0.00021227,3]
[349030004,1736944248836,-500.0,0.00021227,3]
[349030005,1736944248846,-286.267143,0.00021227,2]
[349030006,1736944248855,-286.267143,0.00021227,2]
[349030007,1736944248866,-151.0,0.00021227,2]
[349030008,1736944248876,-500.0,0.00021227,3]
[349030009,1736944248886,-4188.84,0.00021227,3]
[349030010,1736944248896,-3855.6,0.00021228,3]
[349030011,1736944248907,-437.75803151,0.0002123,3]
[349030012,1736944248919,-413.81708997,0.0002123,2]
[349030013,1736944248937,-405.10017332,0.00021314,2]
[349030014,1736944248947,-306.4332161,0.00021315,2]
[349030015,1736944248963,-431.0,0.0002134,5]
[349030016,1736944248987,-884.67,0.0002136,3]
[349030017,1736944249004,-500.0,0.0002136,3]
[349030018,1736944249019,-500.0,0.0002136,3]
[349030019,1736944249029,-922.1,0.00021361,3]
[349030020,1736944249041,-588.73,0.00021361,3]
[349030021,1736944249055,-500.0,0.00021361,3]
[349030022,1736944249069,-500.0,0.00021361,3]
[349030023,1736944249082,-722.24,0.00021361,3]
[349030024,1736944249097,-500.0,0.00021361,3]
[349030025,1736944249110,-644.29,0.00021361,3]
[349030026,1736944249124,-581.19,0.00021361,3]
[349030027,1736944249138,-870.67,0.00021361,3]
[349030028,1736944249152,-594.37,0.00021361,3]
[349030029,1736944249166,-17754.08,0.00021361,3]
[349030030,1736944249180,-550.36,0.00021362,3]
[349030031,1736944249193,-500.0,0.00021362,3]
[349030032,1736944249204,-500.0,0.00021362,3]
[349030033,1736944249219,-500.0,0.00021362,3]
[349030034,1736944249232,-500.0,0.00021362,3]
[349030035,1736944249245,-12842.54,0.00021362,3]
[349030036,1736944249258,-502.04,0.00021362,3]
[349030037,1736944249269,-500.0,0.00021362,3]
[349030038,1736944249281,-500.0,0.00021363,3]
[349030039,1736944249293,-500.0,0.00021363,3]
[349030040,1736944249306,-500.0,0.00021363,3]
[349030041,1736944249319,-500.0,0.00021363,2]
[349030042,1736944249333,-500.0,0.00021363,3]
[349030043,1736944249345,-500.0,0.00021363,3]
[349030044,1736944249358,-500.0,0.00021364,3]
[349030045,1736944249372,-500.0,0.00021364,3]
[349030046,1736944249386,-2046.57,0.00021364,3]
[349030047,1736944249400,-1536.16,0.00021364,3]
[349030048,1736944249411,-500.0,0.00021364,3]
[349030049,1736944249422,-604.24,0.00021364,3]
[349030050,1736944249433,-581.26,0.00021364,3]
[349030051,1736944249445,-170.79878103,0.00021364,3]
[349030052,1736944249458,-4188.84,0.00021364,3]
[349030053,1736944249472,-3855.6,0.00021365,3]
[349030054,1736944249486,-37717.2,0.00021389,60]
[349030055,1736944249496,-405.10017332,0.00021417,2]
[349030056,1736944249508,-884.67,0.00021497,3]
[349030057,1736944249519,-500.0,0.00021497,3]
[349030058,1736944249531,-500.0,0.00021497,3]
[349030059,1736944249543,-922.1,0.00021498,3]
[349030060,1736944249554,-588.73,0.00021498,3]
[349030061,1736944249564,-500.0,0.00021498,3]
[349030062,1736944249575,-500.0,0.00021498,3]
[349030063,1736944249586,-722.24,0.00021498,3]
[349030064,1736944249596,-500.0,0.00021498,3]
[349030065,1736944249607,-644.29,0.00021498,3]
[349030066,1736944249618,-581.19,0.00021498,3]
[349030067,1736944249630,-870.67,0.00021498,3]
[349030068,1736944249643,-594.37,0.00021498,3]
[349030069,1736944249654,-17754.08,0.00021498,3]
[349030070,1736944249665,-550.36,0.00021499,3]
[349030071,1736944249675,-500.0,0.00021499,3]
[349030072,1736944249687,-500.0,0.00021499,3]
[349030073,1736944249697,-500.0,0.00021499,3]
[349030074,1736944249709,-500.0,0.00021499,3]
[349030075,1736944249720,-12842.54,0.00021499,3]
[349030076,1736944249732,-502.04,0.00021499,3]
[349030077,1736944249744,-500.0,0.00021499,3]
[349030078,1736944249755,-500.0,0.000215,3]
[349030079,1736944249765,-500.0,0.000215,3]
[349030080,1736944249778,-500.0,0.000215,3]
[349030081,1736944249789,-500.0,0.000215,2]
[349030082,1736944249801,-286.267143,0.000215,2]
[349030083,1736944249814,-286.267143,0.000215,2]
[349030084,1736944249827,-241.069264,0.000215,2]
[349030085,1736944249839,-500.0,0.000215,3]
[349030086,1736944249851,-500.0,0.000215,3]
[349030087,1736944249862,-500.0,0.00021501,3]
[349030088,1736944249874,-500.0,0.00021501,3]
[349030089,1736944249887,-2046.57,0.00021501,3]
[349030090,1736944249899,-1536.16,0.00021501,3]
[349030091,1736944249912,-500.0,0.00021501,3]
[349030092,1736944249926,-604.24,0.00021501,3]
[349030093,1736944249939,-4188.84,0.00021501,3]
[349030094,1736944249951,-3855.6,0.00021502,3]
[349030095,1736944249963,-405.10017332,0.00021521,2]
[349030096,1736944249975,-2253.92879592,0.00021536,2]
[349030097,1736944249987,-500.0,0.00021569,2]
[349030098,1736944250000,-8483.78,0.000216,2]
[349030099,1736944250011,-1286.0,0.000216,4]
[349030100,1736944250023,-1000.0,0.00021601,2]
[349030101,1736944250035,-405.10017332,0.00021624,2]
[349030102,1736944250047,-884.67,0.00021634,3]
[349030103,1736944250059,-500.0,0.00021634,3]
[349030104,1736944250178,-500.0,0.00021634,3]
[349030105,1736944250197,-922.1,0.00021635,3]
[349030106,1736944250207,-588.73,0.00021635,3]
[349030107,1736944250217,-500.0,0.00021635,3]
[349030108,1736944250227,-500.0,0.00021635,3]
[349030109,1736944250237,-722.24,0.00021635,3]
[349030110,1736944250246,-500.0,0.00021635,3]
[349030111,1736944250256,-644.29,0.00021635,3]
[349030112,1736944250266,-581.19,0.00021635,3]
[349030113,1736944250277,-870.67,0.00021635,3]
[349030114,1736944250286,-594.37,0.00021635,3]
[349030115,1736944250295,-17754.08,0.00021635,3]
[349030116,1736944250305,-550.36,0.00021636,3]
[349030117,1736944250315,-326.1310391,0.00021636,3]
[349030118,1736944250325,-500.0,0.00021636,3]
[349030119,1736944250335,-500.0,0.00021636,3]
[349030120,1736944250344,-500.0,0.00021636,3]
[349030121,1736944250354,-12842.54,0.00021636,3]
[349030122,1736944250364,-502.04,0.00021636,3]
[349030123,1736944250373,-500.0,0.00021636,3]
[349030124,1736944250384,-500.0,0.00021637,3]
[349030125,1736944250393,-500.0,0.00021637,3]
[349030126,1736944250402,-500.0,0.00021637,3]
[349030127,1736944250412,-500.0,0.00021637,2]
[349030128,1736944250422,-500.0,0.00021637,3]
[349030129,1736944250431,-500.0,0.00021637,3]
[349030130,1736944250441,-500.0,0.00021638,3]
[349030131,1736944250451,-154.65,0.00021638,3]
[349030132,1736944250461,-2046.57,0.00021638,3]
[349030133,1736944250471,-1536.16,0.00021638,3]
[349030134,1736944250481,-500.0,0.00021638,3]
[349030135,1736944250490,-604.24,0.00021638,3]
[349030136,1736944250500,-4188.84,0.00021638,3]
[349030137,1736944250510,-3855.6,0.00021639,3]
[349030138,1736944250519,-405.10017332,0.00021728,2]
[349030139,1736944250529,-420.0,0.00021763,2]
[349030140,1736944250538,-884.67,0.00021771,3]
[349030141,1736944250548,-500.0,0.00021771,3]
[349030142,1736944250558,-500.0,0.00021771,3]
[349030143,1736944250567,-2253.92879591,0.00021771,2]
[349030144,1736944250577,-922.1,0.00021772,3]
[349030145,1736944250587,-588.73,0.00021772,3]
[349030146,1736944250597,-500.0,0.00021772,3]
[349030147,1736944250606,-462.22,0.00021772,3]
[349030148,1736944250616,-722.24,0.00021772,3]
[349030149,1736944250625,-500.0,0.00021772,3]
[349030150,1736944250636,-644.29,0.00021772,3]
[349030151,1736944250645,-581.19,0.00021772,3]
[349030152,1736944250655,-870.67,0.00021772,3]
[349030153,1736944250664,-594.37,0.00021772,3]
[349030154,1736944250674,-17754.08,0.00021772,3]
[349030155,1736944250683,-550.36,0.00021773,3]
[349030156,1736944250693,-500.0,0.00021773,3]
[349030157,1736944250703,-500.0,0.00021773,3]
[349030158,1736944250712,-500.0,0.00021773,3]
[349030159,1736944250721,-12842.54,0.00021773,3]
[349030160,1736944250732,-502.04,0.00021773,3]
[349030161,1736944250743,-500.0,0.00021773,3]
[349030162,1736944250753,-500.0,0.00021774,3]
[349030163,1736944250763,-500.0,0.00021774,3]
[349030164,1736944250772,-500.0,0.00021774,3]
[349030165,1736944250782,-500.0,0.00021774,2]
[349030166,1736944250792,-286.267143,0.00021774,2]
[349030167,1736944250801,-286.267143,0.00021774,2]
[349030168,1736944250811,-500.0,0.00021774,3]
[349030169,1736944250821,-500.0,0.00021774,3]
[349030170,1736944250831,-582.54000004,0.00021775,3]
[349030171,1736944250841,-2046.57,0.00021775,3]
[349030172,1736944250850,-1536.16,0.00021775,3]
[349030173,1736944250860,-325.52,0.00021775,3]
[349030174,1736944250870,-604.24,0.00021775,3]
[349030175,1736944250880,-4188.84,0.00021775,3]
[349030176,1736944250891,-3855.6,0.00021776,3]
[349030177,1736944250901,-166.935,0.00021787,2]
[349030178,1736944250911,-153.6,0.00021798,2]
[349030179,1736944250923,-405.10017332,0.00021831,2]
[349030180,1736944250934,-151.14249747,0.00021843,3]
[349030181,1736944250944,-150.21,0.00021843,3]
[349030182,1736944250954,-159.02999442,0.00021843,3]
[349030183,1736944250967,-150.21,0.00021843,2]
[349030184,1736944250977,-151.56769148,0.00021843,3]
[349030185,1736944250987,-150.21,0.00021843,3]
[349030186,1736944250998,-150.21,0.00021843,2]
[349030187,1736944251007,-150.24080715,0.00021843,3]
[349030188,1736944251017,-1899.87,0.000219,2]
[349030189,1736944251026,-884.67,0.00021908,3]
[349030190,1736944251036,-500.0,0.00021908,3]
[349030191,1736944251046,-500.0,0.00021908,3]
[349030192,1736944251055,-922.1,0.00021909,3]
[349030193,1736944251066,-588.73,0.00021909,3]
[349030194,1736944251075,-500.0,0.00021909,3]
[349030195,1736944251085,-722.24,0.00021909,3]
[349030196,1736944251095,-500.0,0.00021909,3]
[349030197,1736944251104,-644.29,0.00021909,3]
[349030198,1736944251113,-581.19,0.00021909,3]
[349030199,1736944251123,-870.67,0.00021909,3]
[349030200,1736944251133,-594.37,0.00021909,3]
[349030201,1736944251146,-17754.08,0.00021909,3]
[349030202,1736944251155,-550.36,0.0002191,3]
[349030203,1736944251165,-500.0,0.0002191,3]
[349030204,1736944251176,-500.0,0.0002191,3]
[349030205,1736944251186,-500.0,0.0002191,3]
[349030206,1736944251195,-12842.54,0.0002191,3]
[349030207,1736944251204,-502.04,0.0002191,3]
[349030208,1736944251215,-500.0,0.0002191,3]
[349030209,1736944251224,-500.0,0.00021911,3]
[349030210,1736944251234,-336.29284636,0.00021911,3]
[349030211,1736944251243,-500.0,0.00021911,3]
[349030212,1736944251253,-500.0,0.00021911,2]
[349030213,1736944251262,-500.0,0.00021911,3]
[349030214,1736944251272,-500.0,0.00021911,3]
[349030215,1736944251282,-157.0,0.00021912,2]
[349030216,1736944251291,-157.0,0.00021912,2]
[349030217,1736944251301,-157.0,0.00021912,2]
[349030218,1736944251312,-157.0,0.00021912,2]
[349030219,1736944251322,-158.7,0.00021912,2]
[349030220,1736944251332,-155.0,0.00021912,2]
[349030221,1736944251342,-155.0,0.00021912,2]
[349030222,1736944251351,-151.0,0.00021912,2]
[349030223,1736944251361,-151.0,0.00021912,2]
[349030224,1736944251370,-151.0,0.00021912,2]
[349030225,1736944251379,-151.0,0.00021912,2]
[349030226,1736944251391,-151.0,0.00021912,2]
[349030227,1736944251400,-151.0,0.00021912,2]
[349030228,1736944251410,-151.0,0.00021912,2]
[349030229,1736944251420,-151.0,0.00021912,2]
[349030230,1736944251429,-151.0,0.00021912,2]
[349030231,1736944251439,-151.0,0.00021912,2]
[349030232,1736944251449,-151.0,0.00021912,2]
[349030233,1736944251458,-151.0,0.00021912,2]
[349030234,1736944251467,-151.0,0.00021912,2]
[349030235,1736944251477,-151.0,0.00021912,2]
[349030236,1736944251487,-151.0,0.00021912,2]
[349030237,1736944251496,-254.3,0.00021912,2]
[349030238,1736944251506,-159.0,0.00021912,2]
[349030239,1736944251516,-159.0,0.00021912,2]
[349030240,1736944251526,-160.15,0.00021912,2]
[349030241,1736944251535,-156.0,0.00021912,2]
[349030242,1736944251545,-156.0,0.00021912,2]
[349030243,1736944251554,-156.0,0.00021912,2]
[349030244,1736944251564,-156.0,0.00021912,2]
[349030245,1736944251573,-156.0,0.00021912,2]
[349030246,1736944251583,-254.98,0.00021912,2]
[349030247,1736944251592,-2046.57,0.00021912,3]
[349030248,1736944251602,-1536.16,0.00021912,3]
[349030249,1736944251611,-604.24,0.00021912,3]
[349030250,1736944251622,-4188.84,0.00021912,3]